bitfinex/quotes_BTCUSD_20220205
["timestamp","ask_amount","ask_price","bid_price","bid_amount"]
[1644084339162,0.08171087,41621.0,41617.0,0.00071435]
[1644084340014,0.08171087,41621.0,41613.0,0.1]
[1644084340215,0.08171087,41621.0,41617.0,0.00071435]
[1644084340417,0.335747,41620.0,41617.0,0.00071435]
[1644084341218,0.335747,41620.0,41613.0,0.25490589]
[1644084341417,0.08171087,41621.0,41616.0,0.00071436]
[1644084341620,0.38957081,41620.0,41616.0,0.00071436]
[1644084342518,0.38957081,41620.0,41611.0,0.1]
[1644084342717,0.38957081,41620.0,41616.0,0.00046766]
[1644084343762,0.38957081,41620.0,41613.0,0.05]
[1644084343964,0.38957081,41620.0,41616.0,0.00071419]
[1644084344966,0.06734956,41613.0,41612.0,0.05]
[1644084345168,0.08012916,41614.0,41612.0,0.385747]
[1644084345367,0.08012916,41614.0,41613.0,0.335747]
[1644084345668,0.38957081,41620.0,41613.0,0.335747]
[1644084345968,0.38957081,41620.0,41613.0,0.1]
[1644084346367,0.38957081,41620.0,41614.0,0.0007142]
[1644084347213,0.38957081,41620.0,41611.0,0.05]
[1644084347814,0.278528,41619.0,41611.0,0.05]
[1644084348116,0.38957081,41620.0,41611.0,0.05539519]
[1644084348413,0.1187,41626.0,41611.0,0.05539519]
[1644084348714,0.07145826,41620.0,41613.0,0.00071422]
[1644084348913,0.07145826,41620.0,41613.0,0.00610941]
[1644084349114,0.24052079,41614.0,41613.0,0.00610941]
[1644084349315,0.07145826,41620.0,41613.0,0.34185641]
[1644084349716,0.07145826,41620.0,41613.0,0.00539519]
[1644084350017,0.39017394,41618.0,41614.0,0.0007142]
[1644084350213,0.39017394,41618.0,41614.0,0.00610942]
[1644084350616,0.518,41626.0,41614.0,0.00610942]
[1644084350873,0.518,41626.0,41614.0,0.00539522]
[1644084350874,0.1187,41626.0,41614.0,0.00539522]
[1644084351072,0.1187,41626.0,41618.0,0.00071416]
[1644084351273,0.1187,41626.0,41618.0,0.00610938]
[1644084352070,0.1187,41626.0,41619.0,0.335747]
[1644084352271,0.06684739,41624.0,41620.0,0.00071414]
[1644084352471,0.27761301,41626.0,41621.0,0.335747]
[1644084352676,0.27761301,41626.0,41621.0,0.00539522]
[1644084353672,0.08007067,41625.0,41621.0,0.00610935]
[1644084354173,0.41863544,41631.0,41624.0,0.23466799]
[1644084354373,0.0668264,41628.0,41624.0,0.24006321]
[1644084354620,0.0668264,41628.0,41625.0,0.00071408]
[1644084354812,0.0668264,41628.0,41625.0,0.0061093]
[1644084355011,0.27998942,41631.0,41626.0,0.335747]
[1644084355215,0.27998942,41631.0,41626.0,0.00539522]
[1644084355414,0.27998942,41631.0,41626.0,0.10539522]
[1644084355713,0.27998942,41631.0,41626.0,0.00539522]
[1644084356013,0.41003708,41630.0,41626.0,0.00610929]
[1644084357014,0.41003708,41630.0,41626.0,0.00539522]
[1644084357315,0.07429008,41630.0,41626.0,0.00610929]
[1644084357514,0.07429008,41630.0,41626.0,0.00490883]
[1644084358116,0.07429008,41630.0,41626.0,0.00419476]
[1644084358361,0.07429008,41630.0,41626.0,0.00490883]
[1644084359362,0.07429008,41630.0,41626.0,0.00419476]
[1644084359561,0.07429008,41630.0,41626.0,0.00490883]
[1644084359764,0.01997691,41639.0,41626.0,0.00490883]
[1644084359965,0.01997691,41639.0,41633.0,0.05]
[1644084360164,0.01997691,41639.0,41633.0,0.05539523]
[1644084360368,0.01997691,41639.0,41635.0,0.05]
[1644084360564,0.02152819,41639.0,41635.0,0.05539523]
[1644084360765,0.34870506,41639.0,41636.0,0.26320481]
[1644084360964,0.42697676,41639.0,41636.0,0.26860002]
[1644084361164,0.42697676,41639.0,41636.0,0.00539521]
[1644084362511,0.40544857,41639.0,41636.0,0.00539517]
[1644084363413,0.335747,41638.0,41636.0,0.00539517]
[1644084363615,0.335747,41638.0,41636.0,0.00039517]
[1644084371211,0.330747,41638.0,41636.0,0.00039517]
[1644084372712,0.45436149,41638.0,41636.0,0.00039517]
[1644084373219,0.330747,41638.0,41636.0,0.00039517]
[1644084373460,0.45436149,41638.0,41636.0,0.50039517]
[1644084375062,0.75,41637.0,41629.0,0.00066926]
[1644084375261,0.335747,41636.0,41629.0,0.00066926]
[1644084376160,0.335747,41636.0,41624.0,0.23057819]
[1644084376361,0.335747,41636.0,41629.0,0.00066926]
[1644084376562,0.20259072,41635.0,41629.0,0.00066926]
[1644084376761,0.335596,41634.0,41629.0,0.00066926]
[1644084377415,0.335596,41634.0,41617.0,1.4574]
[1644084377617,0.335596,41634.0,41629.0,0.00066925]
[1644084378218,0.15,41633.0,41629.0,0.00066925]
[1644084378421,0.34086113,41631.0,41629.0,0.00066925]
[1644084378617,0.28492871,41619.0,41618.0,0.27202237]
[1644084378818,0.07895493,41613.0,41608.0,0.1221]
[1644084379016,0.07895493,41613.0,41612.0,0.335596]
[1644084379317,0.28492871,41619.0,41611.0,0.385596]
[1644084379518,0.28492871,41619.0,41610.0,0.00027936]
[1644084379716,0.21543418,41616.0,41612.0,0.24612407]
[1644084380017,0.21543418,41616.0,41613.0,0.33626541]
[1644084380216,0.07049747,41615.0,41613.0,0.33626541]
[1644084380420,0.28492871,41619.0,41614.0,0.05]
[1644084380617,0.28492871,41619.0,41613.0,0.10066941]
[1644084380864,0.28492871,41619.0,41612.0,0.29612407]
[1644084381068,0.28492871,41619.0,41614.0,0.0006694]
[1644084381265,0.27486478,41618.0,41614.0,0.0006694]
[1644084381465,0.36332654,41618.0,41614.0,0.0006694]
[1644084382265,0.27486478,41618.0,41614.0,0.0006694]
[1644084382466,0.08842031,41616.0,41614.0,0.0006694]
[1644084382666,0.335596,41615.0,41614.0,0.0006694]
[1644084383266,0.335596,41615.0,41611.0,0.00027936]
[1644084383571,0.08842031,41616.0,41612.0,0.00066942]
[1644084384268,0.335596,41618.0,41612.0,0.00066942]
[1644084384469,0.08527713,41614.0,41611.0,0.00027936]
[1644084384714,0.08527713,41614.0,41613.0,0.00066942]
[1644084385715,0.08527713,41614.0,41611.0,0.00027936]
[1644084386015,0.08527713,41614.0,41611.0,0.00066943]
[1644084386220,0.33756384,41612.0,41607.0,0.05]
[1644084386420,0.33756384,41612.0,41608.0,0.335596]
[1644084386617,0.33756384,41612.0,41607.0,0.05]
[1644084387418,0.54648739,41612.0,41607.0,0.05]
[1644084387818,0.33756384,41612.0,41607.0,0.05]
[1644084388117,0.33756384,41612.0,41610.0,0.05]
[1644084388365,0.33756384,41612.0,41607.0,0.05]
[1644084389469,0.335596,41611.0,41607.0,0.05]
[1644084390569,0.33756384,41612.0,41607.0,0.05]
[1644084390768,0.33756384,41612.0,41607.0,0.05071429]
[1644084391672,0.33756384,41612.0,41607.0,0.05]
[1644084391870,0.33756384,41612.0,41607.0,0.05071428]
[1644084392913,0.33756384,41612.0,41607.0,0.05]
[1644084393113,0.33756384,41612.0,41607.0,0.00071428]
[1644084393917,0.33756384,41612.0,41606.0,0.09571428]
[1644084394114,0.33756384,41612.0,41604.0,0.05]
[1644084395516,0.33756384,41612.0,41605.0,0.00046728]
[1644084395717,0.08062602,41606.0,41605.0,0.33606328]
[1644084395963,0.08062602,41606.0,41605.0,0.603747]
[1644084396767,0.08062602,41606.0,41605.0,0.32618051]
[1644084400015,0.33756384,41612.0,41605.0,0.32618051]
[1644084400222,0.33756384,41612.0,41604.0,0.22510133]
[1644084400420,0.00071423,41609.0,41604.0,0.22510133]
[1644084400817,0.37585966,41605.0,41604.0,0.22510133]
[1644084401015,0.37585966,41605.0,41604.0,0.56078533]
[1644084401217,0.45745305,41605.0,41604.0,0.56078533]
[1644084401416,0.45745305,41605.0,41604.0,0.335684]
[1644084401623,0.45745305,41605.0,41602.0,0.05071434]
[1644084401821,0.45745305,41605.0,41602.0,0.00099368]
[1644084402418,0.45745305,41605.0,41603.0,0.24807499]
[1644084402821,0.45745305,41605.0,41602.0,0.00027934]
[1644084403017,0.45745305,41605.0,41601.0,0.02099369]
[1644084403464,0.45745305,41605.0,41602.0,0.335684]
[1644084403665,0.45745305,41605.0,41602.0,0.33596334]
[1644084403865,0.45745305,41605.0,41603.0,0.21405285]
[1644084404271,0.00071422,41609.0,41604.0,0.6461952]
[1644084404467,0.00071422,41609.0,41608.0,0.05]
[1644084404870,0.4231,41621.0,41608.0,0.05]
[1644084405066,0.375,41621.0,41608.0,0.045]
[1644084405265,0.00071422,41611.0,41608.0,0.045]
[1644084406065,0.32709978,41614.0,41608.0,0.045]
[1644084406264,0.32709978,41614.0,41611.0,0.23360187]
[1644084406467,0.00071421,41612.0,41611.0,0.23360187]
[1644084406872,0.00071421,41612.0,41611.0,0.2367994]
[1644084407316,0.32709978,41614.0,41611.0,0.2367994]
[1644084407516,0.32781397,41614.0,41611.0,0.2367994]
[1644084408618,0.32709978,41614.0,41611.0,0.2367994]
[1644084409618,0.31709978,41614.0,41611.0,0.2367994]
[1644084410019,0.31709978,41614.0,41611.0,0.00319753]
[1644084410323,0.335684,41613.0,41611.0,0.00319753]
[1644084410519,0.00071418,41615.0,41612.0,0.045]
[1644084410722,0.00071418,41615.0,41612.0,0.04819756]
[1644084410970,0.38285628,41621.0,41613.0,0.26981397]
[1644084410971,0.38,41621.0,41613.0,0.26981397]
[1644084411167,0.1176,41625.0,41613.0,0.26981397]
[1644084411168,0.00071417,41616.0,41615.0,0.045]
[1644084411367,0.00071417,41616.0,41615.0,0.38388156]
[1644084411769,0.00071417,41616.0,41615.0,0.6248505]
[1644084412168,0.08279057,41622.0,41615.0,0.89389576]
[1644084412369,0.00071414,41618.0,41615.0,0.89389576]
[1644084413368,0.08279057,41622.0,41615.0,0.99389576]
[1644084413567,0.00071413,41619.0,41618.0,0.045]
[1644084413766,0.00071413,41619.0,41618.0,0.04819762]
[1644084414370,0.08279057,41622.0,41618.0,0.00319762]
[1644084414624,0.335684,41621.0,41618.0,0.00319762]
[1644084416317,0.08350467,41622.0,41620.0,0.045]
[1644084416618,0.08350467,41622.0,41620.0,0.04819762]
[1644084417015,0.08279057,41622.0,41620.0,0.04819762]
[1644084418219,0.30051504,41627.0,41620.0,0.04819762]
[1644084418465,0.30051504,41627.0,41622.0,0.23884469]
[1644084418466,0.00071408,41623.0,41622.0,0.23884469]
[1644084418665,0.00071408,41623.0,41622.0,0.28704231]
[1644084419164,0.08947387,41623.0,41622.0,0.04819762]
[1644084419369,0.08875979,41623.0,41622.0,0.04819762]
[1644084420466,0.08875979,41623.0,41622.0,0.0481976]
[1644084422917,0.08875979,41623.0,41622.0,0.0031976]
[1644084424120,0.30051504,41627.0,41622.0,0.0031976]
[1644084424319,0.30051504,41627.0,41622.0,0.0481976]
[1644084424518,0.00071407,41625.0,41622.0,0.0481976]
[1644084425417,0.335684,41626.0,41622.0,0.0481976]
[1644084425618,0.33639805,41626.0,41622.0,0.0481976]
[1644084425867,0.06959481,41625.0,41622.0,0.0481976]
[1644084426068,0.06959481,41625.0,41622.0,0.0031976]
[1644084426369,0.340684,41623.0,41622.0,0.0031976]
[1644084427069,0.37624849,41616.0,41611.0,0.00027934]
[1644084427267,0.37624849,41616.0,41610.0,0.02082369]
[1644084427766,0.37624849,41616.0,41610.0,0.02054435]
[1644084427969,0.37624849,41616.0,41610.0,0.02125808]
[1644084428368,0.37624849,41616.0,41610.0,0.02153742]
[1644084428569,0.07197202,41616.0,41615.0,0.045]
[1644084430315,0.07197202,41616.0,41611.0,0.04527934]
[1644084430514,0.07197202,41616.0,41615.0,0.045]
[1644084431422,0.07197202,41616.0,41612.0,0.335684]
[1644084431817,0.07197202,41616.0,41612.0,0.43596334]
[1644084432621,0.07197202,41616.0,41615.0,0.045]
[1644084432816,0.07197202,41616.0,41612.0,0.145]
[1644084433217,0.07197202,41616.0,41612.0,0.045]
[1644084434078,0.07197202,41616.0,41615.0,0.045]
[1644084434679,0.32691241,41619.0,41615.0,0.045]
[1644084434982,0.1209,41621.0,41615.0,0.045]
[1644084435183,0.005,41627.0,41615.0,0.045]
[1644084435380,0.1156,41631.0,41619.0,0.045]
[1644084435579,0.005,41630.0,41622.0,0.045]
[1644084435780,0.07176233,41624.0,41622.0,0.30569493]
[1644084435979,0.07176233,41624.0,41622.0,0.40569493]
[1644084436380,0.07176233,41624.0,41622.0,0.145]
[1644084437219,0.07176233,41624.0,41622.0,0.045]
[1644084437918,0.07676233,41624.0,41619.0,0.41075264]
[1644084438920,0.07747549,41624.0,41619.0,0.41075264]
[1644084439760,0.07676233,41624.0,41619.0,0.41075264]
[1644084440122,0.07747549,41624.0,41619.0,0.145]
[1644084440330,0.07232549,41624.0,41619.0,0.045]
[1644084440522,0.07732549,41624.0,41619.0,0.045]
[1644084440972,0.07661233,41624.0,41619.0,0.045]
[1644084441172,0.07732549,41624.0,41619.0,0.045]
[1644084441772,0.07732549,41624.0,41619.0,0.3246629]
[1644084441975,0.07732549,41624.0,41619.0,0.4246629]
[1644084442176,0.07661233,41624.0,41619.0,0.4246629]
[1644084442374,0.07232549,41624.0,41619.0,0.4246629]
[1644084442575,0.07732549,41624.0,41619.0,0.4246629]
[1644084442775,0.07732549,41624.0,41619.0,0.145]
[1644084443175,0.07732549,41624.0,41619.0,0.045]
[1644084443376,0.07661233,41624.0,41619.0,0.045]
[1644084443578,0.07732549,41624.0,41619.0,0.045]
[1644084443779,0.29136167,41624.0,41619.0,0.045]
[1644084443981,0.29136167,41624.0,41615.0,0.045]
[1644084444379,0.07821568,41613.0,41612.0,1.02650984]
[1644084444622,0.1168,41623.0,41620.0,0.16643135]
[1644084444816,0.39931934,41622.0,41620.0,0.16643135]
[1644084445016,0.40003252,41622.0,41620.0,0.16643135]
[1644084445818,0.39931934,41622.0,41620.0,0.16643135]
[1644084448128,0.39931934,41622.0,41615.0,0.01869052]
[1644084448129,0.7981,41621.0,41615.0,0.01869052]
[1644084448374,0.335684,41620.0,41615.0,0.01869052]
[1644084448571,0.0481,41619.0,41615.0,0.01869052]
[1644084448771,0.335684,41618.0,41615.0,0.01869052]
[1644084448972,0.29380429,41617.0,41611.0,0.00027934]
[1644084449171,0.29380429,41617.0,41610.0,0.0006995]
[1644084449172,0.335684,41616.0,41610.0,0.0006995]
[1644084449371,0.12465164,41615.0,41609.0,0.00027934]
[1644084449572,0.335684,41614.0,41610.0,0.00069945]
[1644084449771,0.69472022,41614.0,41610.0,0.00069945]
[1644084450570,0.69472022,41614.0,41608.0,0.00027934]
[1644084450777,0.69472022,41614.0,41610.0,0.00066559]
[1644084450971,0.07091997,41612.0,41610.0,0.00066559]
[1644084451374,0.335684,41611.0,41610.0,0.00066559]
[1644084451672,0.07091997,41612.0,41610.0,0.00066559]
[1644084451872,0.07091997,41612.0,41608.0,0.00027934]
[1644084452123,0.07091997,41612.0,41608.0,0.0006656]
[1644084452317,0.07091997,41612.0,41608.0,0.00094494]
[1644084452916,0.07091997,41612.0,41608.0,0.0006656]
[1644084453120,0.07091997,41612.0,41608.0,0.00027931]
[1644084453327,0.07091997,41612.0,41608.0,0.00066561]
[1644084454323,0.07091997,41612.0,41608.0,0.00095648]
[1644084454923,0.07091997,41612.0,41608.0,0.00067717]
[1644084455426,0.07091997,41612.0,41604.0,0.00027931]
[1644084455623,0.37103247,41607.0,41603.0,0.01836409]
[1644084455870,0.37103247,41607.0,41604.0,0.2262079]
[1644084456068,0.37103247,41607.0,41604.0,0.22648721]
[1644084458072,0.0481,41616.0,41604.0,0.2762079]
[1644084458272,0.335684,41619.0,41607.0,0.05]
[1644084458871,0.27279108,41616.0,41605.0,0.00027931]
[1644084459071,0.08396055,41609.0,41604.0,0.29524596]
[1644084459272,0.08396055,41609.0,41605.0,0.26074251]
[1644084459470,0.08396055,41609.0,41605.0,0.26102182]
[1644084460616,0.08396055,41609.0,41605.0,0.00094699]
[1644084461416,0.08396055,41609.0,41605.0,0.00027931]
[1644084461617,0.08396055,41609.0,41605.0,0.00066832]
[1644084461818,0.08396055,41609.0,41605.0,0.00094763]
[1644084462717,0.08396055,41609.0,41605.0,0.00027931]
[1644084462918,0.08396055,41609.0,41605.0,0.00066832]
[1644084463117,0.08396055,41609.0,41605.0,0.00094763]
[1644084463772,0.08396055,41609.0,41605.0,0.00027931]
[1644084463972,0.08396055,41609.0,41605.0,0.00066832]
[1644084464173,0.08396055,41609.0,41605.0,0.00094763]
[1644084464876,0.08396055,41609.0,41607.0,0.05]
[1644084468518,0.08396055,41609.0,41606.0,0.00070008]
[1644084468724,0.08396055,41609.0,41605.0,0.05027931]
[1644084468919,0.08396055,41609.0,41606.0,0.00068578]
[1644084469120,0.08396055,41609.0,41606.0,0.00096509]
[1644084469522,0.1161,41615.0,41606.0,0.00096509]
[1644084469920,0.1161,41615.0,41606.0,0.00027931]
[1644084470121,0.1161,41615.0,41608.0,0.00068575]
[1644084470870,0.32157182,41611.0,41608.0,0.00068575]
[1644084471071,0.32157182,41611.0,41606.0,0.00027931]
[1644084471277,0.32157182,41611.0,41609.0,0.00068574]
[1644084472272,0.32157182,41611.0,41606.0,0.00027931]
[1644084472473,0.32157182,41611.0,41608.0,0.00058951]
[1644084472771,0.32157182,41611.0,41608.0,0.00272251]
[1644084472972,0.08485817,41610.0,41608.0,0.00272251]
[1644084473373,0.08485817,41610.0,41608.0,0.002133]
[1644084474724,0.335684,41613.0,41608.0,0.002133]
[1644084476023,0.335684,41613.0,41608.0,0.00259936]
[1644084476223,0.07204432,41612.0,41608.0,0.00259936]
[1644084476428,0.335684,41611.0,41608.0,0.00259936]
[1644084476625,0.32983266,41614.0,41608.0,0.00259936]
[1644084476824,0.335684,41613.0,41608.0,0.00259936]
[1644084477024,0.335684,41613.0,41608.0,0.002133]
[1644084477223,0.335684,41613.0,41609.0,0.00071413]
[1644084477427,0.06311586,41611.0,41609.0,0.00284713]
[1644084477624,0.335684,41610.0,41609.0,0.00284713]
[1644084478228,0.335684,41610.0,41609.0,0.002133]
[1644084479473,0.402466,41615.0,41609.0,0.052133]
[1644084479474,0.286366,41615.0,41609.0,0.052133]
[1644084479674,0.3924,41627.0,41615.0,0.75]
[1644084479675,0.00071393,41620.0,41615.0,0.75]
[1644084479878,0.00071393,41620.0,41619.0,0.05]
[1644084480073,0.00071393,41620.0,41619.0,0.687817]
[1644084480275,0.00071393,41620.0,41619.0,0.785917]
[1644084480473,0.00071393,41620.0,41619.0,1.53557003]
[1644084480673,0.001,41635.0,41619.0,1.23557]
[1644084480877,0.001,41635.0,41634.0,0.05]
[1644084481075,0.001,41635.0,41634.0,0.49013693]
[1644084481274,0.001,41635.0,41634.0,0.54013693]
[1644084481472,0.001,41635.0,41634.0,1.10322248]
[1644084481677,0.001,41637.0,41635.0,0.75]
[1644084481877,0.003,41648.0,41637.0,0.75]
[1644084482140,0.003,41648.0,41644.0,0.019997]
[1644084482330,0.003,41648.0,41645.0,0.5]
[1644084482525,0.003,41648.0,41647.0,0.25481831]
[1644084482724,0.005,41650.0,41647.0,0.05]
[1644084482926,0.005,41650.0,41648.0,0.335684]
[1644084483126,0.005,41650.0,41649.0,0.635684]
[1644084483326,0.005,41652.0,41650.0,0.35]
[1644084483327,0.00471997,41651.0,41650.0,0.35]
[1644084483525,0.00071997,41651.0,41650.0,0.685684]
[1644084483727,0.2039751,41651.0,41650.0,0.99429057]
[1644084483926,0.00071997,41651.0,41650.0,0.84848156]
[1644084484126,0.2003751,41651.0,41650.0,0.58987499]
[1644084484334,0.19965513,41651.0,41650.0,0.58987499]
[1644084484530,0.005,41652.0,41651.0,0.335684]
[1644084484728,0.005,41652.0,41651.0,0.05]
[1644084485028,0.005,41652.0,41650.0,0.20609099]
[1644084485029,0.005,41652.0,41650.0,0.15609099]
[1644084485228,0.005,41652.0,41650.0,0.25609099]
[1644084485530,0.005,41652.0,41651.0,0.335684]
[1644084485980,0.005,41652.0,41650.0,0.00213232]
[1644084486177,0.335684,41651.0,41650.0,0.00213229]
[1644084488980,0.005,41652.0,41650.0,0.00213229]
[1644084489384,0.005,41652.0,41650.0,0.27257657]
[1644084489832,0.005,41652.0,41650.0,0.20213229]
[1644084490031,0.005,41652.0,41650.0,1.03739829]
[1644084490231,0.005,41652.0,41651.0,0.5982864]
[1644084490429,0.005,41652.0,41651.0,0.60041864]
[1644084494477,0.001,41653.0,41651.0,0.60041864]
[1644084494678,0.001,41653.0,41652.0,0.32422145]
[1644084494885,0.001,41653.0,41652.0,0.05213203]
[1644084495077,0.001,41653.0,41652.0,0.31393719]
[1644084495277,0.001,41653.0,41652.0,0.64962119]
[1644084495480,0.46453796,41656.0,41654.0,0.4]
[1644084495676,0.18354272,41656.0,41655.0,0.385684]
[1644084495878,0.18354272,41656.0,41655.0,0.8018227]
[1644084496178,0.18354272,41656.0,41655.0,0.85182268]
[1644084496377,0.18354272,41656.0,41655.0,0.85844045]
[1644084496979,0.18354272,41656.0,41655.0,0.58781599]
[1644084497223,0.18354272,41656.0,41655.0,0.58781594]
[1644084497630,0.18354272,41656.0,41655.0,0.85945636]
[1644084498324,0.18354272,41656.0,41655.0,0.90755636]
[1644084498724,0.02621906,41656.0,41655.0,0.90755636]
[1644084499128,0.62642335,41667.0,41657.0,0.75]
[1644084499129,0.07044769,41662.0,41657.0,0.75]
[1644084499332,0.62642335,41667.0,41662.0,0.75]
[1644084499333,0.39498223,41667.0,41662.0,0.75]
[1644084499524,0.39498223,41667.0,41666.0,0.05]
[1644084499525,0.16147134,41667.0,41666.0,0.05]
[1644084499725,0.16147134,41667.0,41666.0,0.7671418]
[1644084499927,0.15859153,41667.0,41666.0,0.7671418]
[1644084500124,0.15859153,41667.0,41666.0,1.1943118]
[1644084500326,0.15489153,41667.0,41666.0,1.40704045]
[1644084500524,0.15489153,41667.0,41666.0,1.40204045]
[1644084500724,0.15489153,41667.0,41666.0,1.49391973]
[1644084500975,0.14989153,41667.0,41666.0,1.41391973]
[1644084501173,0.14989153,41667.0,41666.0,1.54940788]
[1644084501379,0.0179108,41677.0,41668.0,0.75]
[1644084501380,0.15662081,41673.0,41668.0,0.75]
[1644084501577,0.15662081,41673.0,41672.0,0.05]
[1644084501777,0.15662081,41673.0,41672.0,0.81466549]
[1644084501976,0.15662081,41673.0,41672.0,0.86466549]
[1644084502175,0.15662081,41673.0,41672.0,0.91466549]
[1644084502376,0.15662081,41673.0,41672.0,0.633784]
[1644084502581,0.15662081,41673.0,41672.0,0.90586649]
[1644084503777,0.15662081,41673.0,41672.0,0.633784]
[1644084504731,0.0179108,41677.0,41672.0,0.433784]
[1644084504929,0.0179108,41677.0,41675.0,0.05]
[1644084505731,0.0179108,41677.0,41675.0,0.29773145]
[1644084506030,0.0179108,41677.0,41675.0,0.34773145]
[1644084506831,0.0179108,41677.0,41676.0,0.0481]
[1644084507738,0.0179108,41677.0,41676.0,0.30902471]
[1644084507935,0.0179108,41677.0,41676.0,0.40902471]
[1644084508134,1.08e-05,41677.0,41676.0,0.40902471]
[1644084508389,0.78454911,41678.0,41676.0,0.40902471]
[1644084508576,0.78454911,41678.0,41677.0,0.2853015]
[1644084508777,0.78454911,41678.0,41677.0,0.3353015]
[1644084509076,0.78454911,41678.0,41677.0,0.3834015]
[1644084509881,0.78454911,41678.0,41677.0,0.0981]
[1644084510079,0.78454911,41678.0,41677.0,0.0481]
[1644084512418,0.73416771,41678.0,41677.0,0.0481]
[1644084515019,0.72916771,41678.0,41677.0,0.0481]
[1644084515884,0.72916771,41678.0,41676.0,0.15]
[1644084516080,0.72916771,41678.0,41669.0,0.00213131]
[1644084516282,0.06870085,41671.0,41669.0,0.50213131]
[1644084516479,0.06870085,41671.0,41670.0,0.335684]
[1644084516679,0.06870085,41671.0,41670.0,0.33781529]
[1644084517283,0.40438485,41671.0,41670.0,0.00213129]
[1644084517484,0.40438485,41671.0,41670.0,0.00213126]
[1644084518280,0.64410696,41671.0,41670.0,0.00213126]
[1644084518880,0.335684,41671.0,41670.0,0.00213126]
[1644084519082,0.72916771,41678.0,41670.0,0.00213126]
[1644084519083,0.1129,41688.0,41670.0,0.00213126]
[1644084519288,0.060017,41687.0,41677.0,0.05]
[1644084519484,0.001,41686.0,41677.0,0.05]
[1644084519727,0.00288128,41688.0,41682.0,0.01904904]
[1644084519928,0.00288128,41688.0,41685.0,0.6012]
[1644084520128,0.00288128,41688.0,41686.0,0.32456147]
[1644084520328,0.95655469,41689.0,41687.0,0.0481]
[1644084520527,0.50741655,41689.0,41687.0,0.0481]
[1644084520736,0.50741655,41689.0,41688.0,0.9512]
[1644084520930,0.50741655,41689.0,41688.0,0.9993]
[1644084521228,0.50741655,41689.0,41688.0,0.4]
[1644084521430,0.50741655,41689.0,41688.0,0.395]
[1644084521630,0.50669615,41689.0,41688.0,0.1431]
[1644084522230,0.50669615,41689.0,41688.0,0.0931]
[1644084522829,0.50669615,41689.0,41688.0,0.0481]
[1644084523478,0.50669615,41689.0,41688.0,0.31423584]
[1644084524476,0.50669615,41689.0,41688.0,0.30923584]
[1644084524776,0.50669615,41689.0,41688.0,0.0481]
[1644084524777,0.58088078,41689.0,41688.0,0.0481]
[1644084524978,0.91631978,41689.0,41688.0,0.0481]
[1644084525576,1.16415571,41689.0,41686.0,0.0481]
[1644084525981,1.16415571,41689.0,41682.0,0.04969904]
[1644084525982,0.335439,41688.0,41682.0,0.03065]
[1644084526475,0.93825775,41689.0,41682.0,0.03065]
[1644084526676,0.00071987,41687.0,41682.0,0.03065]
[1644084527125,0.93397762,41689.0,41682.0,0.03065]
[1644084527524,0.93397762,41689.0,41683.0,0.22914432]
[1644084527926,0.93397762,41689.0,41682.0,0.03065]
[1644084528126,0.335439,41688.0,41682.0,0.03065]
[1644084528728,0.385439,41688.0,41682.0,0.03065]
[1644084528929,0.49030637,41684.0,41682.0,0.03065]
[1644084530028,0.243528,41684.0,41682.0,0.03065]
[1644084530626,0.243528,41684.0,41682.0,0.01908668]
[1644084530882,0.293528,41684.0,41682.0,0.01908668]
[1644084531084,0.243528,41684.0,41682.0,0.01908668]
[1644084531678,0.51330988,41684.0,41682.0,0.01908668]
[1644084532280,0.243528,41684.0,41682.0,0.01908668]
[1644084532878,0.93469819,41689.0,41682.0,0.01908668]
[1644084533078,0.335439,41688.0,41682.0,0.01908668]
[1644084533278,0.93469819,41689.0,41684.0,0.24270135]
[1644084533478,0.85979299,41689.0,41684.0,0.24270135]
[1644084533878,0.86051357,41689.0,41684.0,0.24270135]
[1644084534278,0.5031366,41689.0,41684.0,0.24270135]
[1644084534481,0.5031366,41689.0,41684.0,0.29080135]
[1644084534722,0.50241602,41689.0,41684.0,0.29080135]
[1644084538677,0.50313699,41689.0,41684.0,0.29080135]
[1644084539477,0.50233294,41689.0,41684.0,0.29080135]
[1644084539878,0.50305391,41689.0,41684.0,0.34080135]
[1644084540079,0.50305391,41689.0,41684.0,0.39080135]
[1644084540678,0.50233294,41689.0,41684.0,0.39080135]
[1644084540877,0.50305391,41689.0,41684.0,0.39080135]
[1644084541881,0.50233294,41689.0,41684.0,0.39080135]
[1644084542325,0.50305391,41689.0,41684.0,0.29080135]
[1644084543124,0.50233294,41689.0,41684.0,0.29080135]
[1644084543326,0.50305391,41689.0,41684.0,0.29080135]
[1644084543523,0.50605391,41689.0,41684.0,0.29080135]
[1644084544323,0.50533294,41689.0,41684.0,0.29080135]
[1644084544524,0.50605391,41689.0,41684.0,0.29080135]
[1644084545525,0.50533294,41689.0,41684.0,0.29080135]
[1644084545724,0.45605391,41689.0,41684.0,0.29080135]
[1644084546378,0.45605391,41689.0,41684.0,0.24270135]
[1644084546775,0.45533294,41689.0,41684.0,0.24270135]
[1644084546971,0.45605391,41689.0,41684.0,0.24270135]
[1644084547974,0.45533294,41689.0,41684.0,0.24270135]
[1644084548172,0.45605391,41689.0,41684.0,0.24270135]
[1644084548371,0.45605391,41689.0,41684.0,0.34270135]
[1644084549171,0.45533294,41689.0,41684.0,0.34270135]
[1644084549375,0.45605391,41689.0,41684.0,0.34270135]
[1644084549624,0.45605391,41689.0,41684.0,0.24270135]
[1644084550224,0.06551048,41688.0,41684.0,0.24270135]
[1644084550629,0.06551048,41688.0,41685.0,0.0481]
[1644084550825,0.45558128,41689.0,41685.0,0.0481]
[1644084551626,0.45533294,41689.0,41685.0,0.30666239]
[1644084551827,0.45558129,41689.0,41685.0,0.30666239]
[1644084552424,0.45558129,41689.0,41685.0,0.28166239]
[1644084552826,0.45533294,41689.0,41685.0,0.28166239]
[1644084553026,0.45558129,41689.0,41685.0,0.28166239]
[1644084553397,0.102,41690.0,41689.0,0.09376608]
[1644084553586,0.102,41690.0,41689.0,0.14186608]
[1644084553987,0.102,41690.0,41689.0,0.40001706]
[1644084554484,0.102,41690.0,41689.0,0.50001706]
[1644084554688,0.102,41690.0,41689.0,0.60001706]
[1644084555085,0.102,41690.0,41689.0,0.34186608]
[1644084555287,0.102,41690.0,41689.0,0.60262042]
[1644084555886,0.102,41690.0,41689.0,0.34186608]
[1644084556088,0.102,41690.0,41689.0,0.13936608]
[1644084558224,0.102,41690.0,41689.0,0.23936608]
[1644084558827,0.102,41690.0,41689.0,0.49536502]
[1644084559026,0.102,41690.0,41689.0,0.59536502]